[Event "DVM U10 2024"]
[Site "Duesseldorf"]
[Date "2024.12.28"]
[Round "4"]
[White "Pukshansky, Mikhail B"]
[Black "Krupp, Jonathan"]
[Result "0-1"]
[ECO "C58"]
[WhiteElo "2405"]
[BlackElo "941"]
[Annotator "TA"]
[PlyCount "42"]
[EventDate "2024.12.23"]
[EventType "team-tourn"]
[EventRounds "7"]
[EventCountry "GER"]
[SourceTitle "playchess.com"]
[Source "ChessBase"]
[SourceQuality "1"]
[TimeControl "3300+5"]

{[%evp 9,41,16,15,-70,-33,-25,37,15,16,22,215,142,142,139,431,427,489,479,701,417,447,460,434,426,965,980,965,930,899,790,847,840,818,-29999]} 1. e4 {[%emt 0:00:02]} e5 {[%emt 0:00:04]} 2. Nf3 {[%emt 0:00:05]} Nc6 {[%emt 0:00:05]} 3. Bc4 {[%emt 0:00:09]} Nf6 {[%emt 0:00:14]} 4. Ng5 {[%emt 0:00:17]} d5 {[%emt 0:00:36]} 5. exd5 {[%emt 0:00:08]} Na5 $1 {[%emt 0:00:07]} 6. Bd3 {[%emt 0:00:15]} (6. Bb5+ $11 c6 7. dxc6 bxc6 8. Bd3) 6... h6 {[%emt 0:00:15]} ({Reject} 6... Qxd5 $6 7. O-O $11) 7. Nf3 {[%emt 0:00:18]} Qxd5 {[%emt 0:00:03]} ({Better is} 7... e4 $11 8. Qe2 Qe7) 8. Nc3 $14 {[%emt 0:00:25] White is slightly better.} Qe6 {[%emt 0:00:32]} 9. O-O {[%emt 0:00:28] Strongly threatening Re1.} e4 $2 {[%emt 0:00:06] [#]} (9... Bd6 $11) 10. Bxe4 {[%emt 0:00:31]} Nxe4 {[%emt 0:00:07]} 11. Nxe4 {[%emt 0:00:08]} Qxe4 $2 {[%emt 0:00:08][%mdl 8192]} (11... Bd6 $16 12. Re1 (12. Nxd6+ Qxd6 13. Re1+ Be6 $16) 12... O-O) 12. Re1 $18 {[%emt 0:00:13]} Qxe1+ {[%emt 0:03:19]} 13. Qxe1+ {[%emt 0:00:10]} Be6 {[%emt 0:00:44]} (13... Be7 $142 14. d4 Nc4) 14. Nd4 {[%emt 0:00:07]} Kd7 {[%emt 0:01:40]} 15. Nxe6 {[%emt 0:00:36]} fxe6 {[%emt 0:00:09]} 16. d4 {[%emt 0:00:24]} Re8 {[%emt 0:00:55]} (16... Nc6 $142 17. Qe4 Rd8) 17. Qxa5 {[%emt 0:00:20]} a6 {[%emt 0:00:31]} 18. h3 {[%emt 0:00:39]} Bd6 {[%emt 0:00:53]} 19. d5 {[%emt 0:00:26]} Re7 {[%emt 0:00:53]} 20. dxe6+ {[%emt 0:00:17]} Rxe6 {[%emt 0:00:06]} 21. Qd5 $4 {[%emt 0:00:12][%mdl 8192] [#]} (21. Be3 $18) 21... Re1# {[%emt 0:00:31] What a bad dream for White.   Weighted Error Value: White=1.02/Black=0.86.  Loses game:     	---       	Black=2      Mistake:       	---       	Black=3      Inaccurate:     	White=2     	Black=1      OK:         	White=2     	Black=2      Best:        	White=2     	---} 0-1

[Event "DVM U10 2024"]
[Site "Duesseldorf"]
[Date "2024.12.28"]
[Round "4"]
[White "Jiang, Lucas"]
[Black "Chen, Aimée"]
[Result "1/2-1/2"]
[ECO "C55"]
[WhiteElo "2261"]
[BlackElo "1090"]
[Annotator "RC"]
[PlyCount "96"]
[EventDate "2024.12.23"]
[EventType "team-tourn"]
[EventRounds "7"]
[EventCountry "GER"]
[SourceTitle "playchess.com"]
[Source "ChessBase"]
[SourceQuality "1"]
[TimeControl "3300+5"]

1. e4 {[%emt 0:00:03]} e5 {[%emt 0:00:05]} 2. Nf3 {[%emt 0:00:11]} Nc6 {[%emt 0:00:07]} 3. Bc4 {[%emt 0:00:14]} Nf6 {[%emt 0:00:18]} 4. d3 {[%emt 0:00:15]} h6 {[%emt 0:00:08]} 5. Be3 {[%emt 0:00:11]} d5 {[%emt 0:00:45]} 6. exd5 {[%emt 0:00:44]} Nxd5 {[%emt 0:00:14]} 7. Bxd5 {[%emt 0:00:14]} Qxd5 {[%emt 0:00:11]} 8. Nc3 {[%emt 0:00:08]} Qd8 {[%emt 0:00:05]} 9. a3 {[%emt 0:00:22]} Bd6 {[%emt 0:00:43]} 10. h3 {[%emt 0:00:14]} Be6 {[%emt 0:00:34]} 11. Qd2 {[%emt 0:00:52]} Qd7 {[%emt 0:00:12]} 12. O-O-O {[%emt 0:00:14]} O-O-O {[%emt 0:00:16]} 13. d4 {[%emt 0:00:51]} exd4 {[%emt 0:00:35]} 14. Bxd4 {[%emt 0:00:35]} Nxd4 {[%emt 0:00:23]} 15. Qxd4 {[%emt 0:00:31]} Kb8 {[%emt 0:00:54]} 16. Rhe1 {[%emt 0:00:28]} f6 {[%emt 0:02:14]} 17. Rd3 {[%emt 0:00:58]} Rhe8 {[%emt 0:03:07]} 18. Red1 {[%emt 0:00:40]} Bf5 {[%emt 0:01:18]} 19. R3d2 {[%emt 0:01:01]} Qe7 {[%emt 0:05:13]} 20. Nd5 {[%emt 0:01:29]} Qe4 {[%emt 0:00:57]} 21. Qxe4 {[%emt 0:00:27]} Bxe4 {[%emt 0:00:33]} 22. Kb1 {[%emt 0:00:17]} c6 {[%emt 0:00:37]} 23. Nc3 {[%emt 0:00:27]} Kc7 {[%emt 0:01:14]} 24. Nxe4 {[%emt 0:00:33]} Rxe4 {[%emt 0:00:09]} 25. Nd4 {[%emt 0:00:13]} g6 {[%emt 0:01:25]} 26. f3 {[%emt 0:00:34]} Re7 {[%emt 0:01:50]} 27. Rd3 {[%emt 0:01:05]} a6 {[%emt 0:01:24]} 28. h4 {[%emt 0:01:04]} c5 {[%emt 0:01:51]} 29. Rc3 {[%emt 0:00:58]} Kb8 {[%emt 0:01:11]} 30. Nb3 {[%emt 0:00:26]} b6 {[%emt 0:00:35]} 31. a4 {[%emt 0:01:33]} Bc7 {[%emt 0:04:26]} 32. Rxd8+ {[%emt 0:00:28]} Bxd8 {[%emt 0:00:09]} 33. a5 {[%emt 0:01:45]} Re2 {[%emt 0:00:30]} 34. g3 {[%emt 0:00:38]} Rg2 {[%emt 0:00:58]} 35. f4 {[%emt 0:00:16]} Kb7 {[%emt 0:02:20]} 36. axb6 {[%emt 0:01:18]} Bxb6 {[%emt 0:00:13]} 37. Ka2 {[%emt 0:00:08]} Re2 {[%emt 0:00:28]} 38. Nxc5+ {[%emt 0:00:23]} Bxc5 {[%emt 0:00:16]} 39. Rxc5 {[%emt 0:00:07]} Re3 {[%emt 0:00:13]} 40. Rd5 {[%emt 0:04:01]} Kc6 {[%emt 0:00:37]} 41. Rd3 {[%emt 0:00:09]} Re2 {[%emt 0:01:27]} 42. Kb3 {[%emt 0:01:05]} Re6 {[%emt 0:00:54]} 43. Kc4 {[%emt 0:00:23]} Re4+ {[%emt 0:00:12]} 44. Rd4 {[%emt 0:00:12]} Re2 {[%emt 0:00:27]} 45. Kc3 {[%emt 0:01:03]} Re3+ {[%emt 0:00:16]} 46. Rd3 {[%emt 0:00:06]} Re6 {[%emt 0:00:13]} 47. b4 {[%emt 0:00:31]} Re4 {[%emt 0:00:28]} 48. Kb3 {[%emt 0:02:09]} Re6 {[%emt 0:00:40]} 1/2-1/2

[Event "DVM U10 2024"]
[Site "Duesseldorf"]
[Date "2024.12.28"]
[Round "4"]
[White "Mueller, Konstantin"]
[Black "Fabritius, Wolf"]
[Result "1-0"]
[ECO "C02"]
[WhiteElo "1957"]
[BlackElo "1405"]
[Annotator "NA RC"]
[PlyCount "53"]
[EventDate "2024.12.23"]
[EventType "team-tourn"]
[EventRounds "7"]
[EventCountry "GER"]
[SourceTitle "playchess.com"]
[Source "ChessBase"]
[SourceQuality "1"]
[TimeControl "3300+5"]

1. e4 {[%emt 0:00:03]} e6 {[%emt 0:00:05]} 2. d4 {[%emt 0:00:04]} d5 {[%emt 0:00:03]} 3. e5 {[%emt 0:00:05]} c5 {[%emt 0:00:06]} 4. c3 {[%emt 0:00:04]} Bd7 {[%emt 0:00:05]} 5. Nf3 {[%emt 0:02:39]} Qb6 {[%emt 0:00:06]} 6. a3 {[%emt 0:01:46]} Bb5 {[%emt 0:01:06]} 7. Bxb5+ {[%emt 0:04:13]} Qxb5 {[%emt 0:00:09]} 8. b4 {[%emt 0:00:07]} c4 {[%emt 0:01:07]} 9. O-O {[%emt 0:01:12]} Ne7 {[%emt 0:00:48]} 10. a4 {[%emt 0:02:44]} Qd7 {[%emt 0:00:18]} 11. Na3 {[%emt 0:00:59]} a5 {[%emt 0:00:41]} 12. b5 {[%emt 0:02:06]} Ng6 {[%emt 0:00:05]} 13. Nc2 {[%emt 0:00:23]} Be7 {[%emt 0:00:06]} 14. Be3 {[%emt 0:00:32]} b6 {[%emt 0:00:10]} 15. Nd2 {[%emt 0:00:22]} O-O {[%emt 0:01:15]} 16. f4 {[%emt 0:00:11]} f5 {[%emt 0:00:23]} 17. exf6 {[%emt 0:01:16]} gxf6 {[%emt 0:00:22]} 18. Nf3 {[%emt 0:01:54]} Kh8 {[%emt 0:00:42]} 19. Qe2 {[%emt 0:04:28]} Qe8 {[%emt 0:00:59]} 20. Bd2 {[%emt 0:00:58]} Bd6 {[%emt 0:01:11]} 21. Rae1 {[%emt 0:12:48]} Bxf4 {[%emt 0:00:43]} 22. Qxe6 {[%emt 0:00:38]} Qxe6 {[%emt 0:01:09]} 23. Rxe6 {[%emt 0:00:24]} Bc7 {[%emt 0:00:12]} 24. Bh6 {[%emt 0:00:38]} Rg8 {[%emt 0:02:40]} 25. Rxf6 {[%emt 0:00:48]} Nd7 {[%emt 0:00:55]} 26. Rf7 {[%emt 0:00:11]} Rad8 {[%emt 0:00:05]} 27. Ng5 {[%emt 0:00:31]} 1-0

[Event "DVM U10 2024"]
[Site "Duesseldorf"]
[Date "2024.12.28"]
[Round "4"]
[White "Boeskov, Steffen"]
[Black "Naveen, Yuvaan"]
[Result "0-1"]
[ECO "B08"]
[WhiteElo "1933"]
[BlackElo "1110"]
[Annotator "NA RC"]
[PlyCount "102"]
[EventDate "2024.12.23"]
[EventType "team-tourn"]
[EventRounds "7"]
[EventCountry "GER"]
[SourceTitle "playchess.com"]
[Source "ChessBase"]
[SourceQuality "1"]
[TimeControl "3300+5"]

1. e4 {[%emt 0:00:01]} d6 {[%emt 0:00:06]} 2. Nc3 {[%emt 0:00:14]} Nf6 {[%emt 0:00:09]} 3. Bc4 {[%emt 0:00:39]} g6 {[%emt 0:00:12]} 4. d4 {[%emt 0:00:40]} Bg7 {[%emt 0:00:10]} 5. Nf3 {[%emt 0:00:24]} Bg4 {[%emt 0:00:20]} 6. h3 {[%emt 0:00:14]} Bxf3 {[%emt 0:00:13]} 7. Qxf3 {[%emt 0:00:07]} Nc6 {[%emt 0:00:38]} 8. Be3 {[%emt 0:00:49]} Nb4 {[%emt 0:00:45]} 9. Bb3 {[%emt 0:00:59]} Nc6 {[%emt 0:00:50]} 10. Ba4 {[%emt 0:00:17]} O-O {[%emt 0:00:50]} 11. e5 {[%emt 0:00:10]} dxe5 {[%emt 0:00:39]} 12. Bxc6 {[%emt 0:00:24]} bxc6 {[%emt 0:00:21]} 13. Qxc6 {[%emt 0:00:12]} exd4 {[%emt 0:00:16]} 14. Rd1 {[%emt 0:00:44]} e5 {[%emt 0:00:34]} 15. Bg5 {[%emt 0:00:47]} Qe7 {[%emt 0:01:25]} 16. Nd5 {[%emt 0:00:23]} Qe6 {[%emt 0:00:37]} 17. Nxf6+ {[%emt 0:01:22]} Bxf6 {[%emt 0:00:26]} 18. Qxe6 {[%emt 0:00:12]} fxe6 {[%emt 0:00:09]} 19. Bh6 {[%emt 0:00:27]} Rf7 {[%emt 0:00:29]} 20. O-O {[%emt 0:00:37]} g5 {[%emt 0:01:17]} 21. c3 {[%emt 0:00:38]} Rd8 {[%emt 0:00:43]} 22. cxd4 {[%emt 0:00:16]} Rxd4 {[%emt 0:00:24]} 23. Rxd4 {[%emt 0:01:12]} exd4 {[%emt 0:00:07]} 24. Rd1 {[%emt 0:01:18]} e5 {[%emt 0:01:19]} 25. Rc1 {[%emt 0:00:42]} d3 {[%emt 0:00:47]} 26. h4 {[%emt 0:00:41]} gxh4 {[%emt 0:01:19]} 27. Rc3 {[%emt 0:00:20]} e4 {[%emt 0:00:15]} 28. Ra3 {[%emt 0:01:00]} c5 {[%emt 0:00:41]} 29. Rb3 {[%emt 0:00:38]} Be5 {[%emt 0:00:50]} 30. Rb5 {[%emt 0:00:37]} Bd6 {[%emt 0:00:38]} 31. Kf1 {[%emt 0:01:15]} Bf4 {[%emt 0:00:42]} 32. Bxf4 {[%emt 0:01:20]} Rxf4 {[%emt 0:00:06]} 33. Rxc5 {[%emt 0:00:23]} e3 {[%emt 0:00:32]} 34. Rd5 {[%emt 0:00:21]} Rxf2+ {[%emt 0:00:12]} 35. Ke1 {[%emt 0:00:23]} d2+ {[%emt 0:00:27]} 36. Kd1 {[%emt 0:00:10]} Rxg2 {[%emt 0:00:38]} 37. b4 {[%emt 0:00:32]} h3 {[%emt 0:00:06]} 38. Rd8+ {[%emt 0:00:53]} Kg7 {[%emt 0:00:11]} 39. Rd7+ {[%emt 0:00:17]} Kh6 {[%emt 0:00:07]} 40. Rd6+ {[%emt 0:02:47]} Rg6 {[%emt 0:00:10]} 41. Rd4 {[%emt 0:00:52]} Rg5 {[%emt 0:00:23]} 42. Rh4+ {[%emt 0:03:09]} Rh5 {[%emt 0:00:07]} 43. Re4 {[%emt 0:00:36]} h2 {[%emt 0:00:11]} 44. Rxe3 {[%emt 0:00:22]} h1=Q+ {[%emt 0:00:08]} 45. Kxd2 {[%emt 0:00:20]} Rd5+ {[%emt 0:00:35]} 46. Ke2 {[%emt 0:00:22]} Qd1+ {[%emt 0:00:09]} 47. Kf2 {[%emt 0:00:12]} Rd2+ {[%emt 0:00:27]} 48. Kg3 {[%emt 0:00:09]} Qg1+ {[%emt 0:00:09]} 49. Kf3 {[%emt 0:00:22]} Qf2+ {[%emt 0:00:05]} 50. Ke4 {[%emt 0:01:01]} Kg5 {[%emt 0:00:25]} 51. Rf3 {[%emt 0:00:39]} Qd4# {[%emt 0:00:11]} 0-1

[Event "DVM U10 2024"]
[Site "Duesseldorf"]
[Date "2024.12.28"]
[Round "4"]
[White "Pereira, Jefferson Luis de S."]
[Black "Ragavendra Prasanna, Shyam Sundar"]
[Result "0-1"]
[ECO "C45"]
[WhiteElo "1932"]
[BlackElo "1524"]
[Annotator "NA RC"]
[PlyCount "88"]
[EventDate "2024.12.23"]
[EventType "team-tourn"]
[EventRounds "7"]
[EventCountry "GER"]
[SourceTitle "playchess.com"]
[Source "ChessBase"]
[SourceQuality "1"]
[TimeControl "3300+5"]

1. e4 {[%emt 0:00:02]} e5 {[%emt 0:00:12]} 2. Nf3 {[%emt 0:00:08]} Nc6 {[%emt 0:00:15]} 3. Nc3 {[%emt 0:00:10]} Nf6 {[%emt 0:00:10]} 4. d4 {[%emt 0:00:12]} exd4 {[%emt 0:00:41]} 5. Nxd4 {[%emt 0:00:06]} d5 {[%emt 0:01:51]} 6. Nxc6 {[%emt 0:00:20]} bxc6 {[%emt 0:00:09]} 7. e5 {[%emt 0:00:41]} Qe7 {[%emt 0:00:15]} 8. Bf4 {[%emt 0:00:20]} Nh5 {[%emt 0:00:24]} 9. Qxh5 {[%emt 0:01:02]} d4 {[%emt 0:00:09]} 10. Ne4 {[%emt 0:00:38]} Qb4+ {[%emt 0:00:09]} 11. Nd2 {[%emt 0:00:51]} Qxb2 {[%emt 0:00:23]} 12. Nb3 {[%emt 0:00:18]} Bb4+ {[%emt 0:00:43]} 13. Bd2 {[%emt 0:00:18]} Bxd2+ {[%emt 0:00:10]} 14. Kxd2 {[%emt 0:00:28]} Be6 {[%emt 0:00:49]} 15. Re1 {[%emt 0:00:23]} Qxa2 {[%emt 0:01:37]} 16. Qd1 {[%emt 0:00:32]} Bxb3 {[%emt 0:00:16]} 17. g3 {[%emt 0:00:40]} Rb8 {[%emt 0:01:24]} 18. Kd3 {[%emt 0:00:39]} Bc4+ {[%emt 0:00:33]} 19. Kxd4 {[%emt 0:00:22]} Rd8+ {[%emt 0:00:16]} 20. Ke3 {[%emt 0:00:14]} Rxd1 {[%emt 0:00:16]} 21. Rxd1 {[%emt 0:00:10]} Bxf1 {[%emt 0:00:29]} 22. Rhxf1 {[%emt 0:00:08]} Qxc2 {[%emt 0:00:14]} 23. Rd2 {[%emt 0:01:37]} Qc3+ {[%emt 0:00:16]} 24. Rd3 {[%emt 0:00:10]} Qxe5+ {[%emt 0:00:09]} 25. Kd2 {[%emt 0:00:08]} O-O {[%emt 0:00:15]} 26. Re1 {[%emt 0:00:05]} Qa5+ {[%emt 0:00:19]} 27. Rc3 {[%emt 0:00:10]} Rd8+ {[%emt 0:00:11]} 28. Ke2 {[%emt 0:00:11]} Qxc3 {[%emt 0:00:12]} 29. Kf1 {[%emt 0:00:07]} Qd3+ {[%emt 0:00:43]} 30. Kg1 {[%emt 0:00:06]} Qd1 {[%emt 0:00:09]} 31. Kf1 {[%emt 0:00:07]} a5 {[%emt 0:00:17]} 32. h4 {[%emt 0:00:07]} a4 {[%emt 0:00:06]} 33. Rxd1 {[%emt 0:00:18]} Rxd1+ {[%emt 0:00:42]} 34. Ke2 {[%emt 0:00:05]} Rb1 {[%emt 0:00:56]} 35. Kd2 {[%emt 0:00:06]} a3 {[%emt 0:00:12]} 36. Kc2 {[%emt 0:00:05]} a2 {[%emt 0:00:06]} 37. h5 {[%emt 0:00:07]} a1=Q {[%emt 0:00:12]} 38. h6 {[%emt 0:00:07]} gxh6 {[%emt 0:00:21]} 39. g4 {[%emt 0:00:03]} Qa2+ {[%emt 0:00:16]} 40. Kc3 {[%emt 0:00:06]} Rb3+ {[%emt 0:00:08]} 41. Kc4 {[%emt 0:00:04]} Qc2+ {[%emt 0:00:11]} 42. Kd4 {[%emt 0:00:08]} Rd3+ {[%emt 0:00:16]} 43. Ke4 {[%emt 0:00:11]} Qe2+ {[%emt 0:00:13]} 44. Kf4 {[%emt 0:00:05]} Rf3# {[%emt 0:00:22]} 0-1

[Event "DVM U10 2024"]
[Site "Duesseldorf"]
[Date "2024.12.28"]
[Round "4"]
[White "Hahn, David"]
[Black "Raskob, Levi Franziskus"]
[Result "1/2-1/2"]
[ECO "A45"]
[WhiteElo "1887"]
[BlackElo "840"]
[Annotator "NA RC"]
[PlyCount "74"]
[EventDate "2024.12.23"]
[EventType "team-tourn"]
[EventRounds "7"]
[EventCountry "GER"]
[SourceTitle "playchess.com"]
[Source "ChessBase"]
[SourceQuality "1"]
[TimeControl "3300+5"]

1. d4 {[%emt 0:00:01]} g6 {[%emt 0:00:13]} 2. Nc3 {[%emt 0:00:07]} Nf6 {[%emt 0:00:14]} 3. Bf4 {[%emt 0:00:09]} Ng4 {[%emt 0:00:25]} 4. e3 {[%emt 0:00:13]} e6 {[%emt 0:00:35]} 5. f3 {[%emt 0:00:15]} Qh4+ {[%emt 0:00:16]} 6. Bg3 {[%emt 0:00:24]} Qg5 {[%emt 0:00:32]} 7. fxg4 {[%emt 0:00:29]} Qxe3+ {[%emt 0:01:03]} 8. Nge2 {[%emt 0:00:14]} c5 {[%emt 0:01:21]} 9. Qc1 {[%emt 0:02:02]} Bh6 {[%emt 0:01:53]} 10. Qxe3 {[%emt 0:00:51]} Bxe3 {[%emt 0:00:11]} 11. dxc5 {[%emt 0:00:15]} Bxc5 {[%emt 0:00:32]} 12. O-O-O {[%emt 0:00:00]} Be3+ {[%emt 0:00:20]} 13. Kb1 {[%emt 0:00:09]} Nc6 {[%emt 0:00:31]} 14. Nb5 {[%emt 0:00:22]} O-O {[%emt 0:00:20]} 15. Nc7 {[%emt 0:00:18]} Rb8 {[%emt 0:00:27]} 16. Nxe6 {[%emt 0:00:16]} dxe6 {[%emt 0:00:16]} 17. Bxb8 {[%emt 0:00:07]} Nxb8 {[%emt 0:01:18]} 18. Rd3 {[%emt 0:01:15]} Nc6 {[%emt 0:00:46]} 19. Rxe3 {[%emt 0:00:16]} Nb4 {[%emt 0:00:30]} 20. Nd4 {[%emt 0:01:24]} Rd8 {[%emt 0:00:10]} 21. Nb3 {[%emt 0:00:41]} Rd1+ {[%emt 0:00:24]} 22. Nc1 {[%emt 0:00:09]} e5 {[%emt 0:00:29]} 23. Rxe5 {[%emt 0:00:46]} Be6 {[%emt 0:00:10]} 24. Rxe6 {[%emt 0:00:20]} fxe6 {[%emt 0:00:09]} 25. c3 {[%emt 0:00:21]} Nd3 {[%emt 0:00:25]} 26. Kc2 {[%emt 0:00:46]} Nf2 {[%emt 0:00:35]} 27. Nb3 {[%emt 0:01:58]} Re1 {[%emt 0:00:13]} 28. Rg1 {[%emt 0:00:49]} Nxg4 {[%emt 0:00:16]} 29. Nc5 {[%emt 0:00:10]} Nxh2 {[%emt 0:00:17]} 30. Rh1 {[%emt 0:00:34]} Nxf1 {[%emt 0:00:12]} 31. Nd3 {[%emt 0:00:46]} Ne3+ {[%emt 0:00:09]} 32. Kd2 {[%emt 0:00:14]} Rxh1 {[%emt 0:00:20]} 33. Kxe3 {[%emt 0:00:06]} Rg1 {[%emt 0:00:25]} 34. Nc5 {[%emt 0:00:29]} Rxg2 {[%emt 0:00:07]} 35. Nxe6 {[%emt 0:00:41]} Rg3+ {[%emt 0:00:07]} 36. Kd4 {[%emt 0:00:09]} Rg4+ {[%emt 0:00:13]} 37. Kd5 {[%emt 0:00:10]} Rh4 {[%emt 0:00:16]} 1/2-1/2

[Event "DVM U10 2024"]
[Site "Duesseldorf"]
[Date "2024.12.28"]
[Round "4"]
[White "White, William"]
[Black "Glaser-Gallion, Ludwig"]
[Result "1/2-1/2"]
[ECO "B12"]
[WhiteElo "1750"]
[BlackElo "1358"]
[Annotator "NA RC"]
[PlyCount "63"]
[EventDate "2024.12.23"]
[EventType "team-tourn"]
[EventRounds "7"]
[EventCountry "GER"]
[SourceTitle "playchess.com"]
[Source "ChessBase"]
[SourceQuality "1"]
[TimeControl "3300+5"]

1. e4 {[%emt 0:00:02]} c6 {[%emt 0:00:05]} 2. d4 {[%emt 0:00:06]} d5 {[%emt 0:00:05]} 3. e5 {[%emt 0:00:25]} c5 {[%emt 0:00:05]} 4. c3 {[%emt 0:00:04]} Nc6 {[%emt 0:00:05]} 5. Nf3 {[%emt 0:00:04]} cxd4 {[%emt 0:00:09]} 6. cxd4 {[%emt 0:00:07]} Bg4 {[%emt 0:00:05]} 7. Bb5 {[%emt 0:01:03]} e6 {[%emt 0:00:07]} 8. Nc3 {[%emt 0:00:56]} Bb4 {[%emt 0:00:30]} 9. a3 {[%emt 0:00:31]} Bxc3+ {[%emt 0:00:37]} 10. bxc3 {[%emt 0:00:07]} Nge7 {[%emt 0:00:15]} 11. h3 {[%emt 0:00:36]} Bxf3 {[%emt 0:01:02]} 12. Qxf3 {[%emt 0:00:05]} a6 {[%emt 0:00:31]} 13. Bxc6+ {[%emt 0:01:06]} Nxc6 {[%emt 0:00:28]} 14. Qg3 {[%emt 0:01:28]} g6 {[%emt 0:07:19]} 15. Bg5 {[%emt 0:06:11]} Qa5 {[%emt 0:01:58]} 16. O-O {[%emt 0:00:35]} Qc7 {[%emt 0:05:05]} 17. Bf6 {[%emt 0:04:56]} Rf8 {[%emt 0:00:48]} 18. Qg5 {[%emt 0:01:59]} h5 {[%emt 0:01:36]} 19. Qh6 {[%emt 0:01:50]} Ne7 {[%emt 0:01:13]} 20. Rfc1 {[%emt 0:00:11]} Ng8 {[%emt 0:00:49]} 21. Qf4 {[%emt 0:01:21]} Nxf6 {[%emt 0:00:34]} 22. Qxf6 {[%emt 0:00:20]} Qe7 {[%emt 0:01:30]} 23. Qxe7+ {[%emt 0:03:53]} Kxe7 {[%emt 0:00:13]} 24. c4 {[%emt 0:00:30]} dxc4 {[%emt 0:01:42]} 25. Rxc4 {[%emt 0:00:06]} Rfc8 {[%emt 0:00:07]} 26. Rb4 {[%emt 0:00:58]} b5 {[%emt 0:02:02]} 27. a4 {[%emt 0:00:36]} Rc4 {[%emt 0:00:20]} 28. Rab1 {[%emt 0:00:45]} Rxb4 {[%emt 0:00:24]} 29. Rxb4 {[%emt 0:00:06]} bxa4 {[%emt 0:00:20]} 30. Rxa4 {[%emt 0:00:04]} a5 {[%emt 0:00:12]} 31. Kf1 {[%emt 0:00:43]} Kd7 {[%emt 0:00:12]} 32. Ke2 {[%emt 0:02:07]} 1/2-1/2

[Event "DVM U10 2024"]
[Site "Duesseldorf"]
[Date "2024.12.28"]
[Round "4"]
[White "Barsov, Mikhail"]
[Black "Zentgraf, Raphael"]
[Result "1-0"]
[ECO "B22"]
[WhiteElo "1737"]
[BlackElo "1175"]
[Annotator "NA RC"]
[PlyCount "85"]
[EventDate "2024.12.23"]
[EventType "team-tourn"]
[EventRounds "7"]
[EventCountry "GER"]
[SourceTitle "playchess.com"]
[Source "ChessBase"]
[SourceQuality "1"]
[TimeControl "3300+5"]

1. e4 {[%emt 0:00:04]} c5 {[%emt 0:00:08]} 2. c3 {[%emt 0:00:02]} Nf6 {[%emt 0:00:07]} 3. e5 {[%emt 0:00:03]} Nd5 {[%emt 0:00:07]} 4. Nf3 {[%emt 0:00:04]} e6 {[%emt 0:00:13]} 5. d4 {[%emt 0:00:06]} cxd4 {[%emt 0:00:12]} 6. cxd4 {[%emt 0:00:03]} b6 {[%emt 0:00:24]} 7. Be2 {[%emt 0:05:28]} Qc7 {[%emt 0:00:19]} 8. O-O {[%emt 0:01:04]} Bb7 {[%emt 0:00:14]} 9. Bd2 {[%emt 0:03:56]} Nc6 {[%emt 0:01:01]} 10. Nc3 {[%emt 0:00:16]} Nxc3 {[%emt 0:00:18]} 11. Bxc3 {[%emt 0:00:08]} d6 {[%emt 0:00:21]} 12. Rc1 {[%emt 0:01:41]} Rd8 {[%emt 0:00:57]} 13. Qa4 {[%emt 0:03:44]} Be7 {[%emt 0:00:24]} 14. b4 {[%emt 0:01:09]} O-O {[%emt 0:00:46]} 15. b5 {[%emt 0:00:54]} Nb8 {[%emt 0:02:10]} 16. Qxa7 {[%emt 0:05:42]} Nd7 {[%emt 0:02:49]} 17. Bb4 {[%emt 0:00:26]} Nc5 {[%emt 0:02:14]} 18. exd6 {[%emt 0:00:58]} Bxd6 {[%emt 0:00:30]} 19. dxc5 {[%emt 0:00:28]} bxc5 {[%emt 0:02:01]} 20. Bxc5 {[%emt 0:00:30]} Bxc5 {[%emt 0:01:34]} 21. Qxc5 {[%emt 0:00:24]} Qxc5 {[%emt 0:00:30]} 22. Rxc5 {[%emt 0:00:36]} Ra8 {[%emt 0:00:22]} 23. Ra1 {[%emt 0:00:26]} Bd5 {[%emt 0:00:10]} 24. a4 {[%emt 0:00:31]} Rfb8 {[%emt 0:00:30]} 25. a5 {[%emt 0:00:52]} Bb7 {[%emt 0:00:23]} 26. a6 {[%emt 0:00:44]} Kf8 {[%emt 0:00:48]} 27. Rac1 {[%emt 0:00:47]} Bd5 {[%emt 0:00:32]} 28. Ne5 {[%emt 0:00:40]} Rd8 {[%emt 0:00:15]} 29. Rc7 {[%emt 0:00:30]} f6 {[%emt 0:00:34]} 30. Nd7+ {[%emt 0:00:39]} Ke8 {[%emt 0:00:36]} 31. Nb6 {[%emt 0:00:12]} Rdb8 {[%emt 0:00:57]} 32. Nxa8 {[%emt 0:00:06]} Rxa8 {[%emt 0:00:14]} 33. Rc8+ {[%emt 0:00:07]} Rxc8 {[%emt 0:00:35]} 34. Rxc8+ {[%emt 0:00:03]} Kd7 {[%emt 0:00:08]} 35. Rg8 {[%emt 0:00:16]} Kc7 {[%emt 0:02:21]} 36. Rxg7+ {[%emt 0:00:03]} Kb8 {[%emt 0:00:14]} 37. a7+ {[%emt 0:00:06]} Ka8 {[%emt 0:00:35]} 38. Bf3 {[%emt 0:00:15]} h6 {[%emt 0:01:21]} 39. Bxd5+ {[%emt 0:00:11]} exd5 {[%emt 0:00:15]} 40. b6 {[%emt 0:00:10]} d4 {[%emt 0:00:34]} 41. Rg8+ {[%emt 0:00:04]} Kb7 {[%emt 0:00:12]} 42. a8=Q+ {[%emt 0:00:06]} Kxb6 {[%emt 0:00:26]} 43. Rc8 {[%emt 0:00:37]} 1-0